Workbook

Sheet Raport vânzări produse
B1: Raport vânzări produse
B20: Produse

Sheet Date istorice
B1: Lista istorică de prețuri a produselor și vânzări
B3: ID produs | C3: Nume produs | D3: Dată preț | E3: Preț de comercializare cu amănuntul pe unitate | F3: Preț en gross pe unitate* | G3: Unități vândute (vânzare cu amănuntul) | H3: Unități vândute (en gross) | I3: Total vânzări (#) | J3: Total vânzări (lei)
B4: 5 | C4: =IFERROR(IF(tblVânzări[[#This Row],[ID produs]]<>"",VLOOKUP(tblVânzări[ID produs],tblProduse[[ID produs]:[Nume]],2,FALSE),""),"ID produs necunoscut") -> Pantaloni scurți | D4: 2012-01-01 | E4: 20 | F4: 20 lei | G4: 629 | H4: 1,254 | I4: =tblVânzări[[#This Row],[Unități vândute (en gross)]]+tblVânzări[[#This Row],[Unități vândute (vânzare cu amănuntul)]] -> 1,883 | J4: =tblVânzări[[#This Row],[Unități vândute (vânzare cu amănuntul)]]*tblVânzări[[#This Row],[Preț de comercializare cu amănuntul pe unitate]]+tblVânzări[[#This Row],[Unități vândute (en gross)]]*tblVânzări[[#This Row],[Preț en gross pe unitate*]] -> 37,660 lei
B5: 1 | C5: =IFERROR(IF(tblVânzări[[#This Row],[ID produs]]<>"",VLOOKUP(tblVânzări[ID produs],tblProduse[[ID produs]:[Nume]],2,FALSE),""),"ID produs necunoscut") -> Bluze | D5: 2012-01-01 | E5: 88 | F5: 54 lei | G5: 734 | H5: 1,427 | I5: =tblVânzări[[#This Row],[Unități vândute (en gross)]]+tblVânzări[[#This Row],[Unități vândute (vânzare cu amănuntul)]] -> 2,161 | J5: =tblVânzări[[#This Row],[Unități vândute (vânzare cu amănuntul)]]*tblVânzări[[#This Row],[Preț de comercializare cu amănuntul pe unitate]]+tblVânzări[[#This Row],[Unități vândute (en gross)]]*tblVânzări[[#This Row],[Preț en gross pe unitate*]] -> 141,650 lei
B6: 2 | C6: =IFERROR(IF(tblVânzări[[#This Row],[ID produs]]<>"",VLOOKUP(tblVânzări[ID produs],tblProduse[[ID produs]:[Nume]],2,FALSE),""),"ID produs necunoscut") -> Sandale | D6: 2012-01-01 | E6: 70 | F6: 44 lei | G6: 744 | H6: 1,043 | I6: =tblVânzări[[#This Row],[Unități vândute (en gross)]]+tblVânzări[[#This Row],[Unități vândute (vânzare cu amănuntul)]] -> 1,787 | J6: =tblVânzări[[#This Row],[Unități vândute (vânzare cu amănuntul)]]*tblVânzări[[#This Row],[Preț de comercializare cu amănuntul pe unitate]]+tblVânzări[[#This Row],[Unități vândute (en gross)]]*tblVânzări[[#This Row],[Preț en gross pe unitate*]] -> 97,972 lei
B7: 3 | C7: =IFERROR(IF(tblVânzări[[#This Row],[ID produs]]<>"",VLOOKUP(tblVânzări[ID produs],tblProduse[[ID produs]:[Nume]],2,FALSE),""),"ID produs necunoscut") -> Umbrele | D7: 2012-01-01 | E7: 63 | F7: 44 lei | G7: 681 | H7: 1,523 | I7: =tblVânzări[[#This Row],[Unități vândute (en gross)]]+tblVânzări[[#This Row],[Unități vândute (vânzare cu amănuntul)]] -> 2,204 | J7: =tblVânzări[[#This Row],[Unități vândute (vânzare cu amănuntul)]]*tblVânzări[[#This Row],[Preț de comercializare cu amănuntul pe unitate]]+tblVânzări[[#This Row],[Unități vândute (en gross)]]*tblVânzări[[#This Row],[Preț en gross pe unitate*]] -> 109,915 lei
B8: 4 | C8: =IFERROR(IF(tblVânzări[[#This Row],[ID produs]]<>"",VLOOKUP(tblVânzări[ID produs],tblProduse[[ID produs]:[Nume]],2,FALSE),""),"ID produs necunoscut") -> Sticle de apă | D8: 2012-01-01 | E8: 35 | F8: 27 lei | G8: 602 | H8: 1,822 | I8: =tblVânzări[[#This Row],[Unități vândute (en gross)]]+tblVânzări[[#This Row],[Unități vândute (vânzare cu amănuntul)]] -> 2,424 | J8: =tblVânzări[[#This Row],[Unități vândute (vânzare cu amănuntul)]]*tblVânzări[[#This Row],[Preț de comercializare cu amănuntul pe unitate]]+tblVânzări[[#This Row],[Unități vândute (en gross)]]*tblVânzări[[#This Row],[Preț en gross pe unitate*]] -> 70,264 lei
B9: 1 | C9: =IFERROR(IF(tblVânzări[[#This Row],[ID produs]]<>"",VLOOKUP(tblVânzări[ID produs],tblProduse[[ID produs]:[Nume]],2,FALSE),""),"ID produs necunoscut") -> Bluze | D9: 2012-02-01 | E9: 55 | F9: 44 lei | G9: 678 | H9: 1,515 | I9: =tblVânzări[[#This Row],[Unități vândute (en gross)]]+tblVânzări[[#This Row],[Unități vândute (vânzare cu amănuntul)]] -> 2,193 | J9: =tblVânzări[[#This Row],[Unități vândute (vânzare cu amănuntul)]]*tblVânzări[[#This Row],[Preț de comercializare cu amănuntul pe unitate]]+tblVânzări[[#This Row],[Unități vândute (en gross)]]*tblVânzări[[#This Row],[Preț en gross pe unitate*]] -> 103,950 lei
B10: 2 | C10: =IFERROR(IF(tblVânzări[[#This Row],[ID produs]]<>"",VLOOKUP(tblVânzări[ID produs],tblProduse[[ID produs]:[Nume]],2,FALSE),""),"ID produs necunoscut") -> Sandale | D10: 2012-02-01 | E10: 83 | F10: 54 lei | G10: 753 | H10: 1,005 | I10: =tblVânzări[[#This Row],[Unități vândute (en gross)]]+tblVânzări[[#This Row],[Unități vândute (vânzare cu amănuntul)]] -> 1,758 | J10: =tblVânzări[[#This Row],[Unități vândute (vânzare cu amănuntul)]]*tblVânzări[[#This Row],[Preț de comercializare cu amănuntul pe unitate]]+tblVânzări[[#This Row],[Unități vândute (en gross)]]*tblVânzări[[#This Row],[Preț en gross pe unitate*]] -> 116,769 lei
B11: 3 | C11: =IFERROR(IF(tblVânzări[[#This Row],[ID produs]]<>"",VLOOKUP(tblVânzări[ID produs],tblProduse[[ID produs]:[Nume]],2,FALSE),""),"ID produs necunoscut") -> Umbrele | D11: 2012-02-01 | E11: 34 | F11: 34 lei | G11: 986 | H11: 1,069 | I11: =tblVânzări[[#This Row],[Unități vândute (en gross)]]+tblVânzări[[#This Row],[Unități vândute (vânzare cu amănuntul)]] -> 2,055 | J11: =tblVânzări[[#This Row],[Unități vândute (vânzare cu amănuntul)]]*tblVânzări[[#This Row],[Preț de comercializare cu amănuntul pe unitate]]+tblVânzări[[#This Row],[Unități vândute (en gross)]]*tblVânzări[[#This Row],[Preț en gross pe unitate*]] -> 69,870 lei
B12: 4 | C12: =IFERROR(IF(tblVânzări[[#This Row],[ID produs]]<>"",VLOOKUP(tblVânzări[ID produs],tblProduse[[ID produs]:[Nume]],2,FALSE),""),"ID produs necunoscut") -> Sticle de apă | D12: 2012-02-01 | E12: 35 | F12: 25 lei | G12: 848 | H12: 1,211 | I12: =tblVânzări[[#This Row],[Unități vândute (en gross)]]+tblVânzări[[#This Row],[Unități vândute (vânzare cu amănuntul)]] -> 2,059 | J12: =tblVânzări[[#This Row],[Unități vândute (vânzare cu amănuntul)]]*tblVânzări[[#This Row],[Preț de comercializare cu amănuntul pe unitate]]+tblVânzări[[#This Row],[Unități vândute (en gross)]]*tblVânzări[[#This Row],[Preț en gross pe unitate*]] -> 59,955 lei
B13: 5 | C13: =IFERROR(IF(tblVânzări[[#This Row],[ID produs]]<>"",VLOOKUP(tblVânzări[ID produs],tblProduse[[ID produs]:[Nume]],2,FALSE),""),"ID produs necunoscut") -> Pantaloni scurți | D13: 2012-02-01 | E13: 41 | F13: 38 lei | G13: 980 | H13: 1,330 | I13: =tblVânzări[[#This Row],[Unități vândute (en gross)]]+tblVânzări[[#This Row],[Unități vândute (vânzare cu amănuntul)]] -> 2,310 | J13: =tblVânzări[[#This Row],[Unități vândute (vânzare cu amănuntul)]]*tblVânzări[[#This Row],[Preț de comercializare cu amănuntul pe unitate]]+tblVânzări[[#This Row],[Unități vândute (en gross)]]*tblVânzări[[#This Row],[Preț en gross pe unitate*]] -> 90,720 lei
B14: 1 | C14: =IFERROR(IF(tblVânzări[[#This Row],[ID produs]]<>"",VLOOKUP(tblVânzări[ID produs],tblProduse[[ID produs]:[Nume]],2,FALSE),""),"ID produs necunoscut") -> Bluze | D14: 2012-02-29 | E14: 27 | F14: 18 lei | G14: 533 | H14: 1,936 | I14: =tblVânzări[[#This Row],[Unități vândute (en gross)]]+tblVânzări[[#This Row],[Unități vândute (vânzare cu amănuntul)]] -> 2,469 | J14: =tblVânzări[[#This Row],[Unități vândute (vânzare cu amănuntul)]]*tblVânzări[[#This Row],[Preț de comercializare cu amănuntul pe unitate]]+tblVânzări[[#This Row],[Unități vândute (en gross)]]*tblVânzări[[#This Row],[Preț en gross pe unitate*]] -> 49,239 lei
B15: 2 | C15: =IFERROR(IF(tblVânzări[[#This Row],[ID produs]]<>"",VLOOKUP(tblVânzări[ID produs],tblProduse[[ID produs]:[Nume]],2,FALSE),""),"ID produs necunoscut") -> Sandale | D15: 2012-02-29 | E15: 38 | F15: 28 lei | G15: 952 | H15: 1,512 | I15: =tblVânzări[[#This Row],[Unități vândute (en gross)]]+tblVânzări[[#This Row],[Unități vândute (vânzare cu amănuntul)]] -> 2,464 | J15: =tblVânzări[[#This Row],[Unități vândute (vânzare cu amănuntul)]]*tblVânzări[[#This Row],[Preț de comercializare cu amănuntul pe unitate]]+tblVânzări[[#This Row],[Unități vândute (en gross)]]*tblVânzări[[#This Row],[Preț en gross pe unitate*]] -> 78,512 lei
B16: 3 | C16: =IFERROR(IF(tblVânzări[[#This Row],[ID produs]]<>"",VLOOKUP(tblVânzări[ID produs],tblProduse[[ID produs]:[Nume]],2,FALSE),""),"ID produs necunoscut") -> Umbrele | D16: 2012-02-29 | E16: 92 | F16: 92 lei | G16: 956 | H16: 1,266 | I16: =tblVânzări[[#This Row],[Unități vândute (en gross)]]+tblVânzări[[#This Row],[Unități vândute (vânzare cu amănuntul)]] -> 2,222 | J16: =tblVânzări[[#This Row],[Unități vândute (vânzare cu amănuntul)]]*tblVânzări[[#This Row],[Preț de comercializare cu amănuntul pe unitate]]+tblVânzări[[#This Row],[Unități vândute (en gross)]]*tblVânzări[[#This Row],[Preț en gross pe unitate*]] -> 204,424 lei
B17: 4 | C17: =IFERROR(IF(tblVânzări[[#This Row],[ID produs]]<>"",VLOOKUP(tblVânzări[ID produs],tblProduse[[ID produs]:[Nume]],2,FALSE),""),"ID produs necunoscut") -> Sticle de apă | D17: 2012-02-29 | E17: 43 | F17: 36 lei | G17: 952 | H17: 1,390 | I17: =tblVânzări[[#This Row],[Unități vândute (en gross)]]+tblVânzări[[#This Row],[Unități vândute (vânzare cu amănuntul)]] -> 2,342 | J17: =tblVânzări[[#This Row],[Unități vândute (vânzare cu amănuntul)]]*tblVânzări[[#This Row],[Preț de comercializare cu amănuntul pe unitate]]+tblVânzări[[#This Row],[Unități vândute (en gross)]]*tblVânzări[[#This Row],[Preț en gross pe unitate*]] -> 90,976 lei
B18: 5 | C18: =IFERROR(IF(tblVânzări[[#This Row],[ID produs]]<>"",VLOOKUP(tblVânzări[ID produs],tblProduse[[ID produs]:[Nume]],2,FALSE),""),"ID produs necunoscut") -> Pantaloni scurți | D18: 2012-02-29 | E18: 98 | F18: 73 lei | G18: 530 | H18: 1,452 | I18: =tblVânzări[[#This Row],[Unități vândute (en gross)]]+tblVânzări[[#This Row],[Unități vândute (vânzare cu amănuntul)]] -> 1,982 | J18: =tblVânzări[[#This Row],[Unități vândute (vânzare cu amănuntul)]]*tblVânzări[[#This Row],[Preț de comercializare cu amănuntul pe unitate]]+tblVânzări[[#This Row],[Unități vândute (en gross)]]*tblVânzări[[#This Row],[Preț en gross pe unitate*]] -> 157,936 lei
B19: 1 | C19: =IFERROR(IF(tblVânzări[[#This Row],[ID produs]]<>"",VLOOKUP(tblVânzări[ID produs],tblProduse[[ID produs]:[Nume]],2,FALSE),""),"ID produs necunoscut") -> Bluze | D19: 2012-03-31 | E19: 38 | F19: 28 lei | G19: 973 | H19: 1,415 | I19: =tblVânzări[[#This Row],[Unități vândute (en gross)]]+tblVânzări[[#This Row],[Unități vândute (vânzare cu amănuntul)]] -> 2,388 | J19: =tblVânzări[[#This Row],[Unități vândute (vânzare cu amănuntul)]]*tblVânzări[[#This Row],[Preț de comercializare cu amănuntul pe unitate]]+tblVânzări[[#This Row],[Unități vândute (en gross)]]*tblVânzări[[#This Row],[Preț en gross pe unitate*]] -> 76,594 lei
B20: 2 | C20: =IFERROR(IF(tblVânzări[[#This Row],[ID produs]]<>"",VLOOKUP(tblVânzări[ID produs],tblProduse[[ID produs]:[Nume]],2,FALSE),""),"ID produs necunoscut") -> Sandale | D20: 2012-03-31 | E20: 50 | F20: 36 lei | G20: 672 | H20: 1,105 | I20: =tblVânzări[[#This Row],[Unități vândute (en gross)]]+tblVânzări[[#This Row],[Unități vândute (vânzare cu amănuntul)]] -> 1,777 | J20: =tblVânzări[[#This Row],[Unități vândute (vânzare cu amănuntul)]]*tblVânzări[[#This Row],[Preț de comercializare cu amănuntul pe unitate]]+tblVânzări[[#This Row],[Unități vândute (en gross)]]*tblVânzări[[#This Row],[Preț en gross pe unitate*]] -> 73,380 lei
B21: 3 | C21: =IFERROR(IF(tblVânzări[[#This Row],[ID produs]]<>"",VLOOKUP(tblVânzări[ID produs],tblProduse[[ID produs]:[Nume]],2,FALSE),""),"ID produs necunoscut") -> Umbrele | D21: 2012-03-31 | E21: 24 | F21: 23 lei | G21: 769 | H21: 1,629 | I21: =tblVânzări[[#This Row],[Unități vândute (en gross)]]+tblVânzări[[#This Row],[Unități vândute (vânzare cu amănuntul)]] -> 2,398 | J21: =tblVânzări[[#This Row],[Unități vândute (vânzare cu amănuntul)]]*tblVânzări[[#This Row],[Preț de comercializare cu amănuntul pe unitate]]+tblVânzări[[#This Row],[Unități vândute (en gross)]]*tblVânzări[[#This Row],[Preț en gross pe unitate*]] -> 55,923 lei
B22: 4 | C22: =IFERROR(IF(tblVânzări[[#This Row],[ID produs]]<>"",VLOOKUP(tblVânzări[ID produs],tblProduse[[ID produs]:[Nume]],2,FALSE),""),"ID produs necunoscut") -> Sticle de apă | D22: 2012-03-31 | E22: 72 | F22: 57 lei | G22: 985 | H22: 1,848 | I22: =tblVânzări[[#This Row],[Unități vândute (en gross)]]+tblVânzări[[#This Row],[Unități vândute (vânzare cu amănuntul)]] -> 2,833 | J22: =tblVânzări[[#This Row],[Unități vândute (vânzare cu amănuntul)]]*tblVânzări[[#This Row],[Preț de comercializare cu amănuntul pe unitate]]+tblVânzări[[#This Row],[Unități vândute (en gross)]]*tblVânzări[[#This Row],[Preț en gross pe unitate*]] -> 176,256 lei
B23: 5 | C23: =IFERROR(IF(tblVânzări[[#This Row],[ID produs]]<>"",VLOOKUP(tblVânzări[ID produs],tblProduse[[ID produs]:[Nume]],2,FALSE),""),"ID produs necunoscut") -> Pantaloni scurți | D23: 2012-03-31 | E23: 85 | F23: 43 lei | G23: 721 | H23: 1,426 | I23: =tblVânzări[[#This Row],[Unități vândute (en gross)]]+tblVânzări[[#This Row],[Unități vândute (vânzare cu amănuntul)]] -> 2,147 | J23: =tblVânzări[[#This Row],[Unități vândute (vânzare cu amănuntul)]]*tblVânzări[[#This Row],[Preț de comercializare cu amănuntul pe unitate]]+tblVânzări[[#This Row],[Unități vândute (en gross)]]*tblVânzări[[#This Row],[Preț en gross pe unitate*]] -> 122,603 lei
B24: 1 | C24: =IFERROR(IF(tblVânzări[[#This Row],[ID produs]]<>"",VLOOKUP(tblVânzări[ID produs],tblProduse[[ID produs]:[Nume]],2,FALSE),""),"ID produs necunoscut") -> Bluze | D24: 2012-04-30 | E24: 91 | F24: 65 lei | G24: 603 | H24: 1,226 | I24: =tblVânzări[[#This Row],[Unități vândute (en gross)]]+tblVânzări[[#This Row],[Unități vândute (vânzare cu amănuntul)]] -> 1,829 | J24: =tblVânzări[[#This Row],[Unități vândute (vânzare cu amănuntul)]]*tblVânzări[[#This Row],[Preț de comercializare cu amănuntul pe unitate]]+tblVânzări[[#This Row],[Unități vândute (en gross)]]*tblVânzări[[#This Row],[Preț en gross pe unitate*]] -> 134,563 lei
B25: 2 | C25: =IFERROR(IF(tblVânzări[[#This Row],[ID produs]]<>"",VLOOKUP(tblVânzări[ID produs],tblProduse[[ID produs]:[Nume]],2,FALSE),""),"ID produs necunoscut") -> Sandale | D25: 2012-04-30 | E25: 91 | F25: 55 lei | G25: 892 | H25: 1,823 | I25: =tblVânzări[[#This Row],[Unități vândute (en gross)]]+tblVânzări[[#This Row],[Unități vândute (vânzare cu amănuntul)]] -> 2,715 | J25: =tblVânzări[[#This Row],[Unități vândute (vânzare cu amănuntul)]]*tblVânzări[[#This Row],[Preț de comercializare cu amănuntul pe unitate]]+tblVânzări[[#This Row],[Unități vândute (en gross)]]*tblVânzări[[#This Row],[Preț en gross pe unitate*]] -> 181,437 lei
B26: 3 | C26: =IFERROR(IF(tblVânzări[[#This Row],[ID produs]]<>"",VLOOKUP(tblVânzări[ID produs],tblProduse[[ID produs]:[Nume]],2,FALSE),""),"ID produs necunoscut") -> Umbrele | D26: 2012-04-30 | E26: 42 | F26: 42 lei | G26: 611 | H26: 1,181 | I26: =tblVânzări[[#This Row],[Unități vândute (en gross)]]+tblVânzări[[#This Row],[Unități vândute (vânzare cu amănuntul)]] -> 1,792 | J26: =tblVânzări[[#This Row],[Unități vândute (vânzare cu amănuntul)]]*tblVânzări[[#This Row],[Preț de comercializare cu amănuntul pe unitate]]+tblVânzări[[#This Row],[Unități vândute (en gross)]]*tblVânzări[[#This Row],[Preț en gross pe unitate*]] -> 75,264 lei
B27: 4 | C27: =IFERROR(IF(tblVânzări[[#This Row],[ID produs]]<>"",VLOOKUP(tblVânzări[ID produs],tblProduse[[ID produs]:[Nume]],2,FALSE),""),"ID produs necunoscut") -> Sticle de apă | D27: 2012-04-30 | E27: 85 | F27: 43 lei | G27: 530 | H27: 1,039 | I27: =tblVânzări[[#This Row],[Unități vândute (en gross)]]+tblVânzări[[#This Row],[Unități vândute (vânzare cu amănuntul)]] -> 1,569 | J27: =tblVânzări[[#This Row],[Unități vândute (vânzare cu amănuntul)]]*tblVânzări[[#This Row],[Preț de comercializare cu amănuntul pe unitate]]+tblVânzări[[#This Row],[Unități vândute (en gross)]]*tblVânzări[[#This Row],[Preț en gross pe unitate*]] -> 89,727 lei
B28: 5 | C28: =IFERROR(IF(tblVânzări[[#This Row],[ID produs]]<>"",VLOOKUP(tblVânzări[ID produs],tblProduse[[ID produs]:[Nume]],2,FALSE),""),"ID produs necunoscut") -> Pantaloni scurți | D28: 2012-04-30 | E28: 82 | F28: 71 lei | G28: 716 | H28: 1,249 | I28: =tblVânzări[[#This Row],[Unități vândute (en gross)]]+tblVânzări[[#This Row],[Unități vândute (vânzare cu amănuntul)]] -> 1,965 | J28: =tblVânzări[[#This Row],[Unități vândute (vânzare cu amănuntul)]]*tblVânzări[[#This Row],[Preț de comercializare cu amănuntul pe unitate]]+tblVânzări[[#This Row],[Unități vândute (en gross)]]*tblVânzări[[#This Row],[Preț en gross pe unitate*]] -> 147,391 lei
B29: 1 | C29: =IFERROR(IF(tblVânzări[[#This Row],[ID produs]]<>"",VLOOKUP(tblVânzări[ID produs],tblProduse[[ID produs]:[Nume]],2,FALSE),""),"ID produs necunoscut") -> Bluze | D29: 2012-05-14 | E29: 34 | F29: 31 lei | G29: 850 | H29: 1,548 | I29: =tblVânzări[[#This Row],[Unități vândute (en gross)]]+tblVânzări[[#This Row],[Unități vândute (vânzare cu amănuntul)]] -> 2,398 | J29: =tblVânzări[[#This Row],[Unități vândute (vânzare cu amănuntul)]]*tblVânzări[[#This Row],[Preț de comercializare cu amănuntul pe unitate]]+tblVânzări[[#This Row],[Unități vândute (en gross)]]*tblVânzări[[#This Row],[Preț en gross pe unitate*]] -> 76,888 lei
B30: 2 | C30: =IFERROR(IF(tblVânzări[[#This Row],[ID produs]]<>"",VLOOKUP(tblVânzări[ID produs],tblProduse[[ID produs]:[Nume]],2,FALSE),""),"ID produs necunoscut") -> Sandale | D30: 2012-05-14 | E30: 64 | F30: 40 lei | G30: 876 | H30: 1,663 | I30: =tblVânzări[[#This Row],[Unități vândute (en gross)]]+tblVânzări[[#This Row],[Unități vândute (vânzare cu amănuntul)]] -> 2,539 | J30: =tblVânzări[[#This Row],[Unități vândute (vânzare cu amănuntul)]]*tblVânzări[[#This Row],[Preț de comercializare cu amănuntul pe unitate]]+tblVânzări[[#This Row],[Unități vândute (en gross)]]*tblVânzări[[#This Row],[Preț en gross pe unitate*]] -> 122,584 lei
B31: 3 | C31: =IFERROR(IF(tblVânzări[[#This Row],[ID produs]]<>"",VLOOKUP(tblVânzări[ID produs],tblProduse[[ID produs]:[Nume]],2,FALSE),""),"ID produs necunoscut") -> Umbrele | D31: 2012-05-14 | E31: 33 | F31: 30 lei | G31: 881 | H31: 1,149 | I31: =tblVânzări[[#This Row],[Unități vândute (en gross)]]+tblVânzări[[#This Row],[Unități vândute (vânzare cu amănuntul)]] -> 2,030 | J31: =tblVânzări[[#This Row],[Unități vândute (vânzare cu amănuntul)]]*tblVânzări[[#This Row],[Preț de comercializare cu amănuntul pe unitate]]+tblVânzări[[#This Row],[Unități vândute (en gross)]]*tblVânzări[[#This Row],[Preț en gross pe unitate*]] -> 63,543 lei
B32: 4 | C32: =IFERROR(IF(tblVânzări[[#This Row],[ID produs]]<>"",VLOOKUP(tblVânzări[ID produs],tblProduse[[ID produs]:[Nume]],2,FALSE),""),"ID produs necunoscut") -> Sticle de apă | D32: 2012-05-14 | E32: 29 | F32: 27 lei | G32: 802 | H32: 1,548 | I32: =tblVânzări[[#This Row],[Unități vândute (en gross)]]+tblVânzări[[#This Row],[Unități vândute (vânzare cu amănuntul)]] -> 2,350 | J32: =tblVânzări[[#This Row],[Unități vândute (vânzare cu amănuntul)]]*tblVânzări[[#This Row],[Preț de comercializare cu amănuntul pe unitate]]+tblVânzări[[#This Row],[Unități vândute (en gross)]]*tblVânzări[[#This Row],[Preț en gross pe unitate*]] -> 65,054 lei
B33: 5 | C33: =IFERROR(IF(tblVânzări[[#This Row],[ID produs]]<>"",VLOOKUP(tblVânzări[ID produs],tblProduse[[ID produs]:[Nume]],2,FALSE),""),"ID produs necunoscut") -> Pantaloni scurți | D33: 2013-12-11 | E33: 24 | F33: 15 lei | G33: 824 | H33: 1,994 | I33: =tblVânzări[[#This Row],[Unități vândute (en gross)]]+tblVânzări[[#This Row],[Unități vândute (vânzare cu amănuntul)]] -> 2,818 | J33: =tblVânzări[[#This Row],[Unități vândute (vânzare cu amănuntul)]]*tblVânzări[[#This Row],[Preț de comercializare cu amănuntul pe unitate]]+tblVânzări[[#This Row],[Unități vândute (en gross)]]*tblVânzări[[#This Row],[Preț en gross pe unitate*]] -> 49,686 lei

Sheet Listă de prețuri
B1: Lista de prețuri a produselor
B3: Adventure Works
B4: Str. Arțarului 234
B5: Brașov, BV 77503
B6: Telefon: (425) 555-0150
B7: FAX: (425) 555-0152
B8: www.adventure-works.com | F8: Ultima actualizare: 15.08.2013
B10: ID produs | C10: Nume | D10: Descriere | E10: Preț de comercializare cu amănuntul pe unitate | F10: Preț en gross pe unitate*
B11: 1 | C11: Bluze | D11: Rămâneți „cool” toată vara, în cămășile noastre de bumbac 100% care nu se lărgesc. | E11: 22 lei | F11: 15.00 lei
B12: 2 | C12: Sandale | D12: Purtați sandale cu talpă de cauciuc foarte rezistentă și plimbați-vă cu ușurință pe cel mai fierbinte nisip. | E12: 10 lei | F12: 6.00 lei
B13: 3 | C13: Umbrele | D13: Apărați-vă de soare sub umbrela noastră foarte mare de plajă care blochează 96% din razele UV dăunătoare. | E13: 30 lei | F13: 20.00 lei
B14: 4 | C14: Sticle de apă | D14: Hidratați-vă cu apă la temperatura perfectă din sticla noastră izolantă. | E14: 7 lei | F14: 5.00 lei
B15: 5 | C15: Pantaloni scurți | D15: Mergeți direct din apă în mașină în pantalonii noștri de nailon cu uscare ultrarapidă. | E15: 15 lei | F15: 8.00 lei
F17: Apelați-ne pentru articolele nelistate.
F18: *Prețurile en gross se aplică pentru cantități de 12 sau mai multe unități.

Sheet Punct pivot preț (hidden)
B1: Raport PivotTable cu punctele de preț
B2: Această foaie ar trebui să rămână ascunsă. Orice modificare efectuată la raportul PivotTable de mai jos poate avea ca rezultat date incorecte în Raportul de vânzări ale produselor.
B3: Produs selectat: | C3: =IF(LEN(B5),B5,"Fără") -> Sandale
B4: Nume produs | C4: Preț de comercializare cu amănuntul pe unitate | D4: Suma vânzărilor totale (#)
B5: Sandale | C5: 38 lei | D5: 2464
C6: 50 lei | D6: 1777
C7: 64 lei | D7: 2539
C8: 70 lei | D8: 1787
C9: 83 lei | D9: 1758
C10: 91 lei | D10: 2715

Sheet Tendință pivot prețuri (hidden)
B1: Raport PivotTable cu tendințele prețurilor
B2: Această foaie ar trebui să rămână ascunsă. Orice modificare efectuată la raportul PivotTable de mai jos poate avea ca rezultat date incorecte în Raportul de vânzări ale produselor.
B3: Suma vânzărilor totale (#) | C3: Nume produs
B4: Dată preț | C4: Sandale
B5: ian | C5: 1787
B6: feb | C6: 4222
B7: mar | C7: 1777
B8: apr | C8: 2715
B9: mai | C9: 2539
